bitfinex/quotes_ETHUSD_20241204
["timestamp","ask_amount","ask_price","bid_price","bid_amount"]
[1733333588648,1.645,3783.0,3782.5,2.64375]
[1733333588856,1.8095,3783.0,3782.5,2.64375]
[1733333589012,1.8095,3783.0,3782.0,2.64404]
[1733333589212,0.53639644,3782.9,3782.3,2.64387]
[1733333589442,0.53639644,3782.9,3781.7,0.02643375]
[1733333589443,1.8095,3783.0,3781.9,3.0]
[1733333589654,1.645,3783.0,3782.9,2.64347]
[1733333589848,1.639,3784.1,3782.1,0.02643211]
[1733333590051,1.639,3784.1,3782.0,1.5603]
[1733333590052,0.52627263,3783.5,3782.7,3.0]
[1733333590238,1.639,3784.1,3783.7,2.64291]
[1733333590437,1.639,3784.1,3783.8,2.64281]
[1733333590652,1.639,3784.1,3783.9,0.02642618]
[1733333590946,1.6276,3785.2,3783.7,2.64291]
[1733333591112,1.04176,3785.1,3783.9,2.64277]
[1733333591429,0.53277896,3784.7,3783.3,3.02642196]
[1733333591620,1.6276,3785.2,3783.3,3.02642196]
[1733333591621,1.6276,3785.2,3784.3,2.64243]
[1733333592160,0.52595524,3784.9,3783.5,3.0]
[1733333592753,1.6276,3785.2,3783.8,3.0]
[1733333592909,1.6276,3785.2,3784.6,2.64228]
[1733333593110,1.6276,3785.2,3785.0,2.64198]
[1733333593358,2.91679445,3786.9,3785.0,2.64198]
[1733333593359,8.79,3786.4,3785.0,2.64198]
[1733333593523,1.295199,3786.3,3784.9,2.64201]
[1733333593724,1.295199,3786.3,3784.6,3.0264153]
[1733333593725,1.295199,3786.3,3784.8,3.0]
[1733333593957,0.54007875,3785.6,3784.9,2.64205]
[1733333594267,1.295199,3786.3,3785.0,0.02641519]
[1733333594560,0.53415428,3786.1,3785.2,3.0]
[1733333594919,1.521,3786.5,3785.3,0.02641204]
[1733333595172,1.5604,3787.8,3786.9,2.64063]
[1733333595371,1.5604,3787.8,3787.0,2.6406]
[1733333595509,1.5604,3787.8,3787.1,2.64053]
[1733333595715,1.5604,3787.8,3787.0,3.0]
[1733333596014,0.1609075,3787.9,3787.0,3.0]
[1733333596015,0.1609075,3787.9,3787.4,3.0]
[1733333596210,0.1609075,3787.9,3787.6,3.0]
[1733333596565,0.1609075,3787.9,3787.7,2.66650681]
[1733333596713,0.1609075,3787.9,3787.8,3.0]
[1733333598614,0.1609075,3787.9,3787.8,3.02639212]
[1733333598841,0.1609075,3787.9,3787.8,3.0]
[1733333599164,0.1609075,3787.9,3787.8,3.0263916]
[1733333599327,0.1609075,3787.9,3786.9,2.64064]
[1733333599328,0.1609075,3787.9,3787.2,3.0]
[1733333599529,0.1609075,3787.9,3786.7,1.531]
[1733333599764,0.1609075,3787.9,3787.3,3.0]
[1733333600117,0.1609075,3787.9,3786.7,1.79180395]
[1733333600317,0.17833075,3787.8,3786.8,2.64074]
[1733333600564,0.17833075,3787.8,3786.7,1.79180395]
[1733333600776,0.17833075,3787.8,3786.3,2.64108]
[1733333601118,0.17833075,3787.8,3786.0,4.27848]
[1733333601119,2.6402,3787.6,3786.0,4.27848]
[1733333601323,0.7055184,3787.8,3785.7,2.64146]
[1733333601324,2.64035,3787.4,3785.7,2.64146]
[1733333601687,1.5356,3787.5,3785.5,2.90661083]
[1733333601688,4.17622,3787.0,3785.5,2.90661083]
[1733333601891,0.03124552,3786.9,3785.5,2.90661083]
[1733333602255,1.5356,3787.0,3785.6,2.64156]
[1733333602448,2.64082,3786.7,3785.1,2.64193]
[1733333602678,0.03124552,3786.6,3785.0,2.64197]
[1733333602845,0.53498528,3786.4,3785.0,2.64197]
[1733333603050,3.12235553,3786.3,3784.7,2.64216]
[1733333603287,1.6364,3786.1,3784.1,1.503]
[1733333603493,0.03124552,3786.0,3784.1,1.52941636]
[1733333603649,2.64145,3785.8,3784.3,2.64249]
[1733333603849,1.6364,3786.1,3784.1,1.503]
[1733333604101,1.6364,3786.1,3785.2,2.64186]
[1733333604251,1.6364,3786.1,3784.2,0.38127685]
[1733333604252,2.16457254,3786.1,3784.2,0.38127685]
[1733333604459,2.16457254,3786.1,3784.9,2.64201]
[1733333604792,2.16457254,3786.1,3784.7,3.0]
[1733333604955,2.16457254,3786.1,3784.8,0.0264118]
[1733333604956,1.6364,3786.1,3784.8,0.0264118]
[1733333605393,0.16364,3786.0,3785.1,3.0]
[1733333605561,0.16364,3786.0,3784.1,1.76828264]
[1733333605562,0.03124552,3785.9,3784.2,2.64256]
[1733333605764,0.16364,3786.0,3784.8,2.64212]
[1733333606053,0.16364,3786.0,3784.3,0.02641544]
[1733333606286,0.16364,3786.0,3784.8,2.64213]
[1733333606486,1.6364,3786.1,3784.8,2.64213]
[1733333606487,0.53926305,3785.5,3784.8,2.64213]
[1733333606748,0.180004,3785.9,3784.6,3.0]
[1733333606988,0.180004,3785.9,3785.2,2.64185]
[1733333607199,1.6364,3786.1,3785.2,2.64185]
[1733333607200,0.52637693,3785.7,3785.6,2.64154]
[1733333607401,1.6364,3786.1,3785.7,3.0]
[1733333607552,1.6364,3786.1,3785.4,3.0]
[1733333607752,1.6364,3786.1,3785.4,5.64167]
[1733333608191,1.80004,3786.1,3785.3,3.0]
[1733333608401,1.80004,3786.1,3785.5,2.64165]
[1733333608695,1.80004,3786.1,3785.2,2.64181]
[1733333608901,1.80004,3786.1,3785.3,3.0]
[1733333609207,1.6364,3786.1,3785.2,2.64181]
[1733333609497,1.6364,3786.1,3785.1,3.0]
[1733333609498,1.5821,3786.7,3785.9,2.64133]
[1733333609652,1.5821,3786.7,3785.1,3.0]
[1733333609857,0.53463247,3786.6,3785.7,3.0]
[1733333610062,0.53463247,3786.6,3785.2,3.0]
[1733333610295,0.21167325,3786.5,3785.5,2.6416]
[1733333610501,0.21167325,3786.5,3785.6,0.02640844]
[1733333610662,2.11483024,3786.7,3786.1,2.64118]
[1733333611194,2.11483024,3786.7,3785.5,2.66800748]
[1733333611195,2.11483024,3786.7,3785.6,3.0]
[1733333611404,0.03124552,3786.6,3785.2,0.26291133]
[1733333611555,0.53273024,3786.7,3785.8,2.64144]
[1733333611756,1.5683,3787.5,3786.1,3.0]
[1733333611955,1.5683,3787.5,3786.5,3.0]
[1733333612190,1.5683,3787.5,3787.1,2.64054]
[1733333612499,0.53584779,3787.6,3786.9,3.0]
[1733333612718,0.53584779,3787.6,3787.5,2.64026]
[1733333612856,1.5683,3788.0,3787.8,2.64005]
[1733333613056,1.5683,3788.4,3787.8,2.64005]
[1733333613308,1.5683,3788.4,3787.8,5.64005]
[1733333613612,0.2,3790.3,3787.8,5.64005]
[1733333613613,1.5903,3788.9,3787.8,5.66644566]
[1733333613778,1.5903,3788.9,3787.8,5.64005]
[1733333614678,1.5903,3788.9,3787.8,7.25155]
[1733333614874,1.5903,3788.9,3787.8,5.64005]
[1733333616108,1.5903,3788.9,3787.8,5.66644284]
[1733333616109,7.5e-06,3787.9,3787.8,5.66644284]
[1733333616314,8.79,3790.3,3788.5,3.0]
[1733333616315,1.6224,3789.4,3788.5,3.0]
[1733333616465,1.6224,3789.4,3788.6,0.02638892]
[1733333616664,1.6224,3789.4,3788.4,3.02638702]
[1733333617009,1.6224,3789.4,3788.9,2.63928]
[1733333617312,1.6224,3789.4,3788.5,3.0]
[1733333617313,1.6224,3789.4,3788.6,3.0]
[1733333617474,1.6224,3789.4,3788.7,3.0]
[1733333617677,1.6224,3789.4,3788.6,2.63942]
[1733333617678,1.83706186,3789.4,3788.2,3.2673418]
[1733333618011,1.83706186,3789.4,3788.3,3.0]
[1733333618012,0.55,3789.3,3788.3,3.0]
[1733333618379,0.55,3789.3,3787.1,1.5049]
[1733333618380,0.03124552,3789.2,3787.1,1.5049]
[1733333618566,1.83706186,3789.4,3787.3,0.35486392]
[1733333618764,1.83706186,3789.4,3788.5,2.63955]
[1733333618966,1.83706186,3789.4,3787.9,2.63998]
[1733333619161,1.6224,3789.4,3788.0,0.02638846]
[1733333619417,1.6224,3789.4,3788.0,0.02638926]
[1733333619596,0.55,3789.3,3787.8,3.0]
[1733333619796,0.55,3789.3,3788.2,3.0]
[1733333620310,0.55,3789.3,3788.1,2.63983]
[1733333620311,0.55,3789.3,3787.8,3.29723174]
[1733333620613,0.52099698,3788.9,3788.3,2.63969]
[1733333620797,1.03112,3789.3,3787.8,3.02639266]
[1733333620966,0.55,3789.3,3788.6,2.63949]
[1733333621161,0.52650336,3789.2,3788.6,2.63949]
[1733333621912,1.6224,3789.4,3788.7,0.02639014]
[1733333622113,1.6224,3789.4,3788.9,2.63925]
[1733333622268,1.6224,3789.4,3789.0,2.63914]
[1733333622612,1.6224,3789.4,3787.4,4.87414721]
[1733333622613,1.6224,3789.4,3788.3,3.0]
[1733333622927,0.52465542,3789.8,3789.2,2.63907]
[1733333623113,0.52465542,3789.8,3789.2,2.63901]
[1733333623297,1.5902,3789.9,3789.0,3.0]
[1733333623481,1.5902,3789.9,3789.5,2.63886]
[1733333624068,1.5902,3789.9,3788.5,4.14442]
[1733333624069,1.5902,3789.9,3789.3,2.63896]
[1733333624307,1.5902,3789.9,3789.4,2.63887]
[1733333624512,1.5902,3789.9,3789.0,2.6392]
[1733333624513,1.5902,3789.9,3789.5,2.63886]
[1733333625112,1.5902,3789.9,3789.4,3.0]
[1733333625613,1.5902,3789.9,3788.5,1.5049]
[1733333625614,0.55,3789.8,3788.5,0.27001741]
[1733333625768,0.55,3789.8,3788.7,2.63939]
[1733333626168,2.63883,3789.6,3788.3,2.63966]
[1733333626390,0.55,3789.6,3788.2,0.27330022]
[1733333626584,0.21108428,3789.9,3788.4,2.63961]
[1733333626585,0.55,3789.4,3788.4,2.63961]
[1733333626785,0.55,3789.4,3787.8,0.02639045]
[1733333626786,3.40086,3789.4,3788.1,2.63984]
[1733333627014,0.51557413,3789.2,3788.1,2.63984]
[1733333627317,0.51557413,3789.2,3787.9,2.63998]
[1733333627613,0.51557413,3789.2,3788.3,3.0]
[1733333628029,1.5826,3789.0,3787.7,0.27080118]
[1733333628228,1.5826,3789.0,3787.3,0.02639278]
[1733333628396,1.5826,3789.0,3788.0,2.63985]
[1733333628596,1.5826,3789.0,3787.3,0.02639278]
[1733333628597,0.55,3788.9,3787.3,2.66676279]
[1733333628946,0.55,3788.9,3787.7,2.6401]
[1733333629096,0.55,3788.9,3787.5,3.0]
[1733333629097,0.53386193,3788.5,3787.5,3.0]
[1733333629296,0.53386193,3788.5,3787.5,0.02639511]
[1733333629545,0.53386193,3788.5,3787.7,3.0]
[1733333629842,0.53386193,3788.5,3787.5,2.64022]
[1733333629843,0.53386193,3788.5,3788.0,3.0]
[1733333630548,0.53386193,3788.5,3787.5,2.6402]
[1733333630841,2.1326,3788.4,3787.3,0.26236867]
[1733333630995,2.1326,3788.4,3787.2,2.64041]
[1733333631198,2.1326,3788.4,3787.3,2.64033]
[1733333631399,0.53059719,3788.3,3787.3,2.64033]
[1733333631595,2.63986,3788.1,3786.8,2.64074]
[1733333631822,0.53059719,3788.3,3786.5,0.26311585]
[1733333631823,0.55,3787.8,3786.5,0.26311585]
[1733333632061,1.6114,3787.9,3786.6,0.0264027]
[1733333632352,1.6114,3787.9,3785.4,0.80531573]
[1733333632353,0.53228404,3787.9,3787.1,1.5778]
[1733333632664,0.53228404,3787.9,3787.0,2.64061]
[1733333632665,1.6114,3788.9,3787.0,2.66700709]
[1733333632875,1.6114,3788.9,3786.6,1.5778]
[1733333632876,1.6114,3788.3,3786.6,1.60419949]
[1733333633067,1.64264552,3788.3,3787.1,2.64049]
[1733333633360,0.55,3788.2,3787.1,2.64049]
[1733333634029,0.55,3788.2,3786.7,2.64082]
[1733333634223,0.55,3788.2,3787.2,2.6404]
[1733333634424,0.51818205,3787.7,3787.2,2.6404]
[1733333634620,0.51818205,3787.7,3786.6,1.84694967]
[1733333634963,0.51818205,3787.7,3787.2,3.0]
[1733333635320,0.55,3788.2,3787.1,3.0]
[1733333635678,0.51944964,3788.0,3787.2,3.0]
[1733333635966,0.51944964,3788.0,3786.6,4.48781967]
[1733333635967,1.5615,3788.7,3787.5,3.0]
[1733333636160,1.5615,3788.7,3788.4,2.63963]
[1733333636326,1.5615,3788.7,3787.6,4.21628423]
[1733333636327,1.5615,3788.7,3788.2,3.0]
[1733333636529,2.08248132,3788.7,3788.2,3.0]
[1733333636950,2.08248132,3788.7,3788.1,2.63978]
[1733333636951,1.5615,3788.7,3788.1,2.63978]
[1733333637259,1.5615,3788.7,3788.6,2.63949]
[1733333637426,1.5615,3788.7,3788.3,2.63965]
[1733333637627,1.5615,3788.7,3787.6,2.64019]
[1733333637628,1.5615,3788.7,3787.7,3.0]
[1733333637819,0.03124552,3788.6,3787.6,2.64012]
[1733333638018,0.03124552,3788.6,3787.2,0.26386333]
[1733333638019,1.77153333,3788.7,3788.1,2.63984]
[1733333638262,1.5615,3788.7,3788.1,2.63983]
[1733333638462,1.5615,3788.7,3786.7,0.1]
[1733333638683,1.5615,3788.7,3788.4,2.63957]
[1733333639022,1.5615,3788.7,3787.8,3.0]
[1733333639311,1.5615,3788.7,3788.6,2.63949]
[1733333639506,1.5615,3788.7,3788.6,5.63949]
[1733333640267,0.27550579,3789.1,3789.0,2.63921]
[1733333640474,0.81678277,3789.1,3788.3,3.0]
[1733333640714,0.81678277,3789.1,3788.8,2.63935]
[1733333640863,0.27550579,3789.1,3788.2,3.2722541]
[1733333641060,0.27550579,3789.1,3788.9,2.63927]
[1733333641376,0.27550579,3789.1,3789.0,2.63921]
[1733333641767,0.27550579,3789.1,3788.8,2.63931]
[1733333641964,0.27550579,3789.1,3788.5,2.6395]
[1733333642162,0.27550579,3789.1,3788.1,2.63981]
[1733333642163,0.58124552,3789.0,3788.1,2.63982]
[1733333642362,0.58124552,3789.0,3787.8,2.64]
[1733333642363,0.55,3788.8,3787.1,1.5435]
[1733333642566,0.55,3788.8,3788.7,2.63942]
[1733333642787,1.5522,3788.9,3788.8,2.63935]
[1733333643174,1.5522,3789.3,3788.2,2.63977]
[1733333643376,1.5522,3789.3,3789.2,2.63907]
[1733333643693,1.70742,3789.3,3789.0,2.63921]
[1733333643866,2.2425185,3789.3,3789.0,2.63921]
[1733333644067,2.2425185,3789.3,3788.3,3.0]
[1733333644068,2.0872985,3789.3,3788.3,3.0]
[1733333644268,1.5522,3789.3,3789.2,2.63907]
[1733333644470,1.5522,3789.3,3788.3,2.63964]
[1733333644813,1.5522,3789.3,3788.8,2.63935]
[1733333644992,1.5522,3789.3,3789.0,2.63921]
[1733333645201,1.5522,3789.3,3788.7,2.63938]
[1733333645528,1.5522,3789.3,3788.8,2.63934]
[1733333645682,1.5522,3789.3,3788.8,2.63929]
[1733333645683,0.55,3789.2,3788.8,2.63929]
[1733333645864,1.5522,3789.3,3788.1,3.0]
[1733333646065,0.53177163,3789.5,3789.4,2.63894]
[1733333646267,1.5375,3789.9,3789.8,2.63866]
[1733333647216,1.5375,3789.9,3789.3,3.0]
[1733333647217,1.5997,3790.3,3789.6,0.02638507]
[1733333647366,1.5997,3790.3,3789.2,0.26536784]
[1733333647570,1.6161,3790.7,3790.2,2.63838]
[1733333647766,1.6161,3790.7,3790.2,2.63834]
[1733333648005,2.29902813,3790.7,3790.0,2.6385]
[1733333648208,2.29902813,3790.7,3789.2,2.63907]
[1733333648409,2.13741813,3790.7,3789.3,0.0263824]
[1733333648713,2.13741813,3790.7,3790.6,2.6381]
[1733333648915,1.6161,3790.7,3790.6,2.6381]
[1733333649070,1.6592,3791.6,3790.3,2.63831]
[1733333649267,1.6592,3791.6,3789.8,3.0]
[1733333649268,0.54106422,3790.9,3789.8,3.0]
[1733333649468,1.6441,3790.8,3789.4,1.6487]
[1733333649714,0.54106422,3790.9,3789.4,1.6487]
[1733333649715,0.54106422,3790.9,3790.7,2.63803]
[1733333649869,0.54106422,3790.9,3789.8,3.0]
[1733333649870,0.54106422,3790.9,3790.8,2.63796]
[1733333650934,1.09106422,3790.9,3790.8,2.63796]
[1733333651139,0.55,3790.9,3790.8,2.63796]
[1733333651433,0.1609075,3791.7,3790.7,3.0]
[1733333651619,0.1609075,3791.7,3790.8,0.0263739]
[1733333651841,0.1609075,3791.7,3791.6,2.6374]
[1733333652046,0.1609075,3791.7,3790.8,2.63796]
[1733333652191,0.1609075,3791.7,3791.6,2.6374]
[1733333652925,0.1609075,3791.7,3790.9,4.6487]
[1733333653131,0.1609075,3791.7,3791.0,2.63782]
[1733333653297,0.17546075,3791.6,3790.5,3.0]
[1733333653504,0.1609075,3791.7,3791.1,2.63775]
[1733333653806,0.55,3791.6,3791.0,2.63781]
[1733333654006,0.55,3791.6,3791.3,2.63759]
[1733333654224,0.55,3791.6,3791.5,2.63747]
[1733333654936,0.55,3791.6,3791.4,2.63754]
[1733333655312,0.55,3791.6,3791.1,2.63769]
[1733333655496,0.83370499,3791.6,3790.3,3.0]
[1733333655696,0.83370499,3791.6,3789.9,1.5051]
[1733333655697,0.55,3791.3,3790.5,3.0]
[1733333656002,0.55,3791.3,3789.9,4.41516417]
[1733333656003,0.55,3791.3,3789.9,0.27152417]
[1733333656225,0.55,3791.3,3789.6,0.02637771]
[1733333656543,0.55,3791.3,3790.7,2.63802]
[1733333656894,0.7899005,3791.3,3790.7,2.63802]
[1733333657221,0.55,3791.3,3790.6,2.63809]
[1733333657407,0.55,3791.3,3790.7,2.63802]
[1733333657611,0.55,3790.9,3790.7,2.63802]
[1733333658002,0.55,3790.9,3790.4,2.63824]
[1733333658257,0.55,3790.7,3789.4,1.6053]
[1733333658490,1.67214552,3790.8,3788.7,0.26214412]
[1733333658491,0.55,3790.5,3788.9,1.5843]
[1733333658656,0.03124552,3790.4,3788.9,1.5843]
[1733333658851,0.55,3790.5,3789.7,2.63872]
[1733333659169,0.55,3790.5,3789.1,2.63913]
[1733333659170,0.55,3790.5,3790.1,2.63843]
[1733333659367,1.6409,3790.8,3790.1,2.63843]
[1733333659368,0.55,3790.7,3790.1,2.63843]
[1733333659571,0.51834439,3790.4,3790.1,2.63843]
[1733333659791,0.55,3790.3,3789.4,3.0]
[1733333660206,0.55,3790.3,3789.8,2.63865]
[1733333660503,0.55,3790.3,3789.4,2.63888]
[1733333660504,0.55,3790.3,3789.4,3.0]
[1733333661003,0.55,3790.3,3789.2,0.27013129]
[1733333661202,0.55,3790.3,3790.0,2.63847]
[1733333661412,0.55,3790.3,3789.1,2.6391]
[1733333661413,1.64494552,3790.2,3787.9,0.30827716]
[1733333661570,0.82132899,3790.1,3789.3,3.0]
[1733333661926,8.82124552,3790.0,3788.0,1.5353]
[1733333662061,2.0868,3789.4,3788.3,2.63965]
[1733333662259,0.03124552,3789.3,3788.2,2.6397]
[1733333662459,0.55,3789.1,3788.5,2.63951]
[1733333662763,0.55,3789.1,3787.6,0.02639284]
[1733333662963,0.55,3789.1,3787.9,2.63992]
[1733333663164,0.55,3789.1,3788.6,2.63948]
[1733333663486,0.55,3789.1,3788.1,2.6398]
[1733333663691,0.55,3789.4,3789.3,2.639]
[1733333664065,0.55,3789.7,3788.6,1.6224]
[1733333664293,0.55,3789.7,3788.8,3.0]
[1733333664502,0.55,3789.7,3789.4,2.63892]
[1733333664805,0.55,3789.7,3788.6,1.6224]
[1733333664961,0.55,3789.7,3789.4,2.63893]
[1733333665166,0.81763995,3789.7,3789.0,2.63918]
[1733333665479,1.5402,3789.5,3788.2,3.0]
[1733333665675,1.5402,3789.5,3787.7,4.20046]
[1733333665676,0.58124552,3789.4,3787.9,0.26058186]
[1733333666001,0.58124552,3789.4,3787.7,1.5604]
[1733333666002,0.55,3789.4,3787.7,1.5604]
[1733333666500,0.55,3789.4,3788.4,2.63962]
[1733333666501,1.66790855,3789.4,3788.4,2.63962]
[1733333666673,0.55,3788.8,3788.4,2.63962]
[1733333666879,0.55,3788.8,3788.6,2.63948]
[1733333667093,0.55,3788.8,3788.7,2.63942]
[1733333667408,1.5402,3789.5,3788.7,2.63936]
[1733333667409,0.55,3788.9,3788.7,2.63936]
[1733333667601,0.55,3788.9,3788.3,3.0]
[1733333667807,0.55,3788.9,3788.5,2.6395]
[1733333667975,0.55,3788.9,3788.8,2.63935]
[1733333668305,0.55,3789.1,3787.9,3.0]
[1733333668487,0.03124552,3789.0,3788.1,3.0]
[1733333668692,0.55,3789.1,3788.7,2.63936]
[1733333668878,1.5402,3789.5,3787.7,1.82631782]
[1733333669212,1.5402,3789.5,3789.3,2.63899]
[1733333669439,1.5402,3789.5,3789.4,2.63894]
[1733333672175,1.64606992,3792.9,3792.8,5.63657]
[1733333674858,2.19606992,3792.9,3792.8,5.63657]
[1733333675001,0.55,3793.7,3793.6,2.63601]
[1733333675483,1.5621,3793.8,3792.7,0.26231215]
[1733333675484,1.5621,3793.8,3793.4,2.63613]
[1733333675831,1.5621,3793.8,3793.1,2.63634]
[1733333675988,1.5621,3793.8,3793.5,2.63608]
[1733333676374,1.5621,3793.8,3793.3,2.63615]
[1733333676580,1.5621,3793.8,3793.5,2.63607]
[1733333676910,0.55,3793.7,3793.1,3.0]
[1733333677110,0.55,3793.7,3793.5,2.63608]
[1733333677420,0.52150316,3794.0,3793.5,2.63603]
[1733333677421,0.55,3793.9,3793.5,2.63603]
[1733333677620,0.55,3793.9,3793.1,2.63636]
[1733333677920,0.55,3793.9,3793.5,2.63602]
[1733333678106,0.55,3793.9,3793.1,2.63636]
[1733333678311,0.58124552,3793.9,3792.7,2.63664]
[1733333678621,0.55,3793.9,3792.8,2.63657]
[1733333678840,1.6272,3793.8,3792.7,2.63663]
[1733333679020,0.30424039,3793.7,3792.8,2.63656]
[1733333679348,1.6272,3793.6,3791.8,2.63726]
[1733333679567,0.52055234,3792.9,3791.4,1.94608549]
[1733333679725,1.5933,3792.8,3791.4,1.5322]
[1733333679913,1.5933,3792.8,3792.1,2.63704]
[1733333680112,1.5933,3792.8,3791.6,2.6374]
[1733333680314,2.66789552,3792.7,3790.9,1.653]
[1733333680512,2.66789552,3792.7,3790.5,2.63817]
[1733333680513,1.5933,3792.6,3791.5,2.63747]
[1733333680712,0.03124552,3792.5,3790.7,2.63803]
[1733333680912,0.03124552,3792.5,3791.6,2.6374]
[1733333681210,1.5933,3792.6,3790.7,5.27606]
[1733333681412,0.53540158,3792.4,3790.8,0.44025719]
[1733333681655,0.53540158,3792.4,3792.1,2.63705]
[1733333681811,0.53540158,3792.4,3791.4,3.0]
[1733333682151,0.53540158,3792.4,3791.5,2.63746]
[1733333682321,0.53540158,3792.4,3791.2,2.63768]
[1733333682525,0.53540158,3792.4,3790.5,2.3385552]
[1733333682526,0.24411568,3792.3,3790.5,1.92466971]
[1733333682839,1.5162,3792.1,3790.6,2.6381]
[1733333683012,0.03124552,3792.0,3790.5,4.56278971]
[1733333683355,1.5162,3792.1,3791.1,2.63774]
[1733333683707,0.5179434,3791.5,3791.3,2.63761]
[1733333683909,0.5179434,3791.5,3790.8,5.63796]
[1733333684152,0.5179434,3791.5,3791.4,2.63754]
[1733333684331,1.5162,3792.1,3791.4,2.63754]
[1733333684724,0.51804889,3791.9,3790.9,0.0263742]
[1733333684932,0.03124552,3791.8,3789.9,1.5471]
[1733333685279,0.54929441,3791.9,3790.8,2.63795]
[1733333685572,0.51804889,3791.9,3790.8,2.63795]
[1733333685946,1.5162,3792.1,3790.8,2.63793]
[1733333686136,0.415322,3792.0,3790.8,2.63793]
[1733333686466,0.415322,3792.0,3790.9,2.63789]
[1733333686672,2.6372,3791.9,3790.6,2.6381]
[1733333686850,0.52527478,3791.2,3790.8,2.63794]
[1733333687056,1.5688,3791.9,3791.3,2.63759]
[1733333687264,0.51873456,3791.8,3790.9,3.0]
[1733333687878,1.5688,3791.9,3791.8,2.63726]
[1733333688028,1.5688,3791.9,3791.2,3.0]
[1733333688235,1.5688,3791.9,3791.5,3.0]
[1733333688456,1.5688,3791.9,3790.9,4.83458777]
[1733333688772,1.5688,3791.9,3791.1,3.0]
[1733333689070,0.16000455,3791.8,3790.4,4.5626]
[1733333689272,0.16000455,3791.8,3790.8,2.63795]
[1733333689483,0.16000455,3791.8,3790.9,5.63789]
[1733333689646,0.16000455,3791.8,3791.0,2.63781]
[1733333690086,0.16000455,3791.8,3790.0,2.17866725]
[1733333690087,0.51571605,3791.3,3790.0,2.43898827]
[1733333690293,0.51571605,3791.3,3790.6,2.63805]
[1733333690457,0.51571605,3791.3,3790.7,2.63802]
[1733333690657,0.51571605,3791.3,3790.6,2.6381]
[1733333691283,0.51571605,3791.3,3790.0,1.82292102]
[1733333691482,0.51571605,3791.3,3790.1,0.61606725]
[1733333691781,0.51571605,3791.3,3790.7,3.0]
[1733333692155,0.51571605,3791.3,3790.7,5.63803]
[1733333692356,0.51571605,3791.3,3790.1,0.61606725]
[1733333692584,0.51571605,3791.3,3790.0,1.82292102]
[1733333692790,0.03124552,3791.2,3790.7,3.0]
[1733333692996,0.51571605,3791.3,3790.7,3.0]
[1733333693291,0.51571605,3791.3,3790.8,2.63794]
[1733333693588,0.16000455,3791.8,3791.0,2.63779]
[1733333693741,1.05188046,3791.7,3790.8,2.6379]
[1733333693943,0.51661314,3791.4,3790.5,0.02637709]
[1733333694191,0.51661314,3791.4,3790.8,2.6379]
[1733333694688,0.51661314,3791.4,3790.9,2.63786]
[1733333695184,10.3588,3791.9,3790.4,5.63818]
[1733333695485,10.3588,3791.9,3790.8,2.63796]
[1733333695789,10.3588,3791.9,3790.7,3.0]
[1733333695790,0.51563909,3791.6,3790.7,3.0]
[1733333695991,0.03124552,3791.5,3790.7,3.0]
[1733333696290,0.51563909,3791.6,3790.4,0.27140617]
[1733333696470,1.5688,3791.9,3791.3,2.6376]
[1733333696780,1.5688,3791.9,3790.7,3.0]
[1733333696781,1.5688,3791.9,3791.5,2.6374]
[1733333696990,1.5688,3791.9,3790.7,3.0]
[1733333697155,1.5688,3791.9,3791.0,3.0]
[1733333697359,1.5688,3791.9,3791.8,2.63726]
[1733333698043,2.0889515,3792.3,3791.8,2.63726]
[1733333698244,2.0889515,3792.3,3791.0,3.27330019]
[1733333698562,2.0889515,3792.3,3791.6,2.6374]
[1733333698765,0.03124552,3792.2,3791.0,0.88936744]
[1733333698965,0.58124552,3792.2,3791.1,2.63774]
[1733333699178,0.58124552,3792.2,3791.8,2.63726]
[1733333699362,0.55,3792.2,3791.5,2.63747]
[1733333699580,0.55,3792.2,3791.3,2.63757]
[1733333699783,0.55,3792.2,3791.0,5.90361411]
[1733333699982,0.55,3792.2,3791.0,3.26580411]
[1733333700168,0.55,3792.2,3791.5,3.0]
[1733333700367,0.55,3792.2,3791.1,5.16376725]
[1733333700368,0.55,3792.2,3791.7,3.0]
[1733333700592,0.55,3792.2,3792.0,2.63706]
[1733333700911,0.79212552,3792.2,3791.0,2.63777]
[1733333701117,0.55,3792.0,3790.5,1.6573]
[1733333701325,0.55,3792.0,3790.7,0.61606725]
[1733333701605,0.55,3792.0,3790.8,2.63796]
[1733333701764,0.55,3792.0,3791.7,2.63728]
[1733333701967,0.55,3792.0,3791.8,2.6372]
[1733333702279,0.55,3792.0,3791.3,2.63757]
[1733333702469,0.55,3792.0,3791.1,3.0]
[1733333702667,0.55,3791.8,3791.4,3.0]
[1733333702902,0.55,3791.8,3791.0,3.0]
[1733333703061,0.55,3792.0,3791.6,2.63733]
[1733333703266,0.55,3792.0,3791.0,3.0]
[1733333703267,0.55,3792.0,3791.7,2.63733]
[1733333704298,0.55,3792.0,3791.4,2.63753]
[1733333704464,0.55,3792.0,3791.2,2.63768]
[1733333704669,0.55,3792.0,3791.4,2.63749]
[1733333705027,0.55,3792.0,3791.5,2.63744]
[1733333705331,0.55,3792.0,3791.4,2.63754]
[1733333705471,0.55,3792.0,3791.8,2.63722]
[1733333705666,0.55,3792.0,3791.2,0.26518154]
[1733333705869,0.55,3792.0,3790.8,2.63789]
[1733333706106,0.55,3792.0,3791.8,2.63725]
[1733333706274,0.55,3792.0,3791.3,2.63757]
[1733333706472,0.55,3792.0,3791.7,2.63731]
[1733333706669,1.6216,3791.8,3790.6,3.0]
[1733333706878,0.55,3791.7,3791.2,2.63768]